bitfinex/quotes_ETHUSD_20260107
["timestamp","ask_amount","ask_price","bid_price","bid_amount"]
[1767815835859,0.002,3147.0,3146.7,0.42668964]
[1767815836058,0.002,3147.0,3146.6,1.08876817]
[1767815839068,0.002,3147.0,3146.6,4.26678876]
[1767815839573,0.002,3147.0,3146.6,1.08876817]
[1767815842092,0.002,3147.0,3146.6,4.26679263]
[1767815843145,0.002,3147.0,3146.6,1.08876817]
[1767815843761,0.002,3147.0,3146.6,4.26679062]
[1767815844269,1.10768968,3147.0,3146.4,3.17822857]
[1767815844674,1.10768968,3147.0,3146.3,4.26705138]
[1767815845378,1.10768968,3147.0,3146.1,1.08876817]
[1767815846242,1.10568968,3146.9,3146.1,4.267253]
[1767815846444,1.10568968,3146.8,3146.1,4.26730501]
[1767815846770,1.10568968,3146.7,3146.0,3.17863533]
[1767815847348,1.10568968,3146.7,3146.1,3.17851704]
[1767815847545,1.10568968,3146.7,3146.0,3.17859533]
[1767815847745,1.37428823,3146.7,3146.0,3.17859533]
[1767815848054,1.37428823,3146.7,3145.9,1.08876817]
[1767815848055,1.37428823,3146.7,3145.9,4.26747397]
[1767815848450,1.10568968,3146.6,3145.9,4.26747397]
[1767815849877,1.10568968,3146.6,3145.5,2.02e-06]
[1767815850171,1.10568968,3146.4,3145.6,3.1790391]
[1767815850376,1.10568968,3146.2,3145.5,4.26789169]
[1767815851258,1.10368968,3146.2,3145.5,4.26789169]
[1767815851572,1.10168968,3146.2,3145.5,4.26789169]
[1767815852864,1.10168968,3146.2,3145.5,1.08877019]
[1767815853068,1.04541951,3146.1,3145.5,2.02e-06]
[1767815853269,0.52324398,3145.9,3145.5,2.02e-06]
[1767815858195,0.52124398,3145.9,3145.8,1.01e-06]
[1767815858780,0.74023303,3146.0,3145.8,1.01e-06]
[1767815860277,4.49300663,3146.0,3145.8,1.01e-06]
[1767815860591,0.42064792,3145.9,3145.8,1.01e-06]
[1767815861092,0.99222391,3145.9,3145.8,1.01e-06]
[1767815861293,0.42064792,3145.9,3145.8,1.01e-06]
[1767815862294,3.74779055,3145.9,3145.5,2.02e-06]
[1767815862495,0.0327793,3145.9,3145.5,2.02e-06]
[1767815862792,3.17857979,3146.1,3145.5,2.02e-06]
[1767815862989,3.17848145,3146.2,3145.5,2.02e-06]
[1767815863162,0.45815314,3146.1,3145.5,2.02e-06]
[1767815863362,0.834,3146.3,3145.5,1.07368602]
[1767815863580,3.1782876,3146.4,3145.5,1.07368602]
[1767815863784,0.834,3146.3,3145.5,1.07368602]
[1767815866562,4.01233989,3146.3,3145.6,1.073684]
[1767815869403,0.55216182,3146.2,3145.8,0.002]
[1767815869574,3.73073574,3146.1,3145.8,0.00100101]
[1767815869774,0.001,3146.0,3145.8,0.00100101]
[1767815870374,0.55085879,3146.0,3145.8,0.00100101]
[1767815870575,0.55085879,3146.0,3145.4,1.07169005]
[1767815871400,1.25409729,3146.0,3145.4,1.07169005]
[1767815872576,0.55085879,3146.0,3145.4,1.07169005]
[1767815873278,0.001,3146.0,3145.4,1.07169005]
[1767815873506,0.001,3146.0,3145.5,1.073684]
[1767815874198,0.001,3146.0,3145.6,1.073684]
[1767815881715,0.001,3145.7,3145.6,1.073684]
[1767815882922,0.001,3146.0,3145.7,1.05001375]
[1767815883420,0.001,3146.0,3145.4,3.17919168]
[1767815883580,0.001,3146.0,3145.6,1.05101274]
[1767815892919,0.001,3146.0,3145.6,4.23004818]
[1767815893226,0.001,3146.0,3145.7,1.05101274]
[1767815896301,0.50107477,3147.0,3146.0,1.05101274]
[1767815896611,1.33307477,3146.9,3146.0,1.05101274]
[1767815898295,4.51090572,3146.9,3146.0,4.22960747]
[1767815898502,4.51090572,3146.9,3146.1,1.05101274]
[1767815898698,5.27995999,3146.9,3146.1,1.05101274]
[1767815899828,8.45779094,3146.9,3146.1,1.05101274]
[1767815901727,5.27995999,3146.9,3146.2,1.05001375]
[1767815902797,0.49046882,3146.8,3146.2,1.05001375]
[1767815904056,3.66832848,3146.8,3146.2,1.05001375]
[1767815904206,0.39182668,3146.7,3146.2,1.05001375]
[1767815905037,0.002,3146.6,3146.2,1.05001375]
[1767815906127,0.836,3146.9,3146.5,1.05101274]
[1767815906432,3.17830526,3147.4,3146.9,1.05101274]
[1767815906433,0.835,3147.4,3146.9,1.05101274]
[1767815910801,0.835,3147.4,3147.0,1.05101274]
[1767815911053,0.001,3147.4,3147.0,1.05101274]
[1767815912124,0.002,3147.8,3147.6,0.99319756]
[1767815912310,0.002,3147.8,3147.6,0.99219857]
[1767815913617,0.002,3147.8,3147.1,0.99319756]
[1767815914644,0.002,3147.8,3147.3,0.99319756]
[1767815916767,0.002,3147.8,3146.9,3.17768797]
[1767815916768,0.836,3148.1,3147.6,0.99319756]
[1767815917536,0.002,3147.8,3147.6,0.99319756]
[1767815918061,0.836,3148.1,3147.6,0.99319756]
[1767815918233,0.836,3148.1,3147.7,0.99319756]
[1767815918647,0.002,3148.1,3147.9,0.99319756]
[1767815919816,0.002,3148.2,3147.9,0.99319756]
[1767815924686,0.002,3148.2,3147.8,0.99319756]
[1767815924818,0.46106369,3148.2,3147.6,0.99319756]
[1767815925022,0.45906369,3148.1,3147.4,0.99319756]
[1767815925634,0.45906369,3148.1,3147.4,4.17039387]
[1767815925821,0.45906369,3148.1,3147.5,3.17710843]
[1767815927059,0.45674728,3148.0,3147.4,0.99319756]
[1767815927260,0.36332674,3147.9,3147.4,0.99319756]
[1767815927466,0.45674728,3148.0,3147.4,4.17041554]
[1767815927758,0.45674728,3148.0,3147.4,0.99319756]
[1767815927949,0.45674728,3148.0,3147.4,4.17042034]
[1767815929278,0.002,3147.9,3147.4,4.17042034]
[1767815931375,0.002,3147.9,3147.4,0.99319756]
[1767815932368,0.36553756,3147.9,3147.4,0.99319756]
[1767815933962,3.99131813,3147.9,3147.2,0.99319756]
[1767815934162,0.48182793,3147.8,3146.8,0.99319756]
[1767815934470,0.44904863,3147.8,3146.8,0.99319756]
[1767815935384,0.44904863,3147.8,3146.9,3.17767625]
[1767815935546,0.44799877,3147.6,3146.9,0.99319756]
[1767815936575,3.62506768,3147.6,3146.9,0.99319756]
[1767815937681,0.44593508,3147.5,3146.9,0.99319756]
[1767815937981,0.44593508,3147.5,3146.9,0.99219857]
[1767815938275,0.3623004,3147.4,3146.9,0.99219857]
[1767815940579,0.44392658,3147.4,3146.5,0.99319756]
[1767815940803,0.44392658,3147.2,3146.5,0.99319756]
[1767815940952,0.44392658,3147.2,3146.5,4.17131426]
[1767815941263,0.44392658,3147.2,3146.6,0.99319756]
[1767815941580,0.36212983,3147.1,3146.6,0.99319756]
[1767815942591,0.36212983,3147.1,3146.4,1.00081527]
[1767815942592,0.44007535,3147.0,3146.4,1.00081527]
[1767815942793,0.36212983,3147.1,3146.0,1.00081527]
[1767815942794,0.44007535,3146.9,3146.0,1.00081527]
[1767815943084,0.43914003,3147.1,3146.0,1.00081527]
[1767815944892,0.43914003,3147.1,3145.7,4.01291556]
[1767815944893,3.61670595,3147.1,3146.2,1.00081527]
[1767815945181,0.43914003,3147.1,3146.2,1.00081527]
[1767815946168,3.6166887,3147.1,3146.2,1.00081527]
[1767815946369,0.67941253,3147.0,3146.2,1.00081527]
[1767815946996,3.17773046,3146.9,3146.2,1.00081527]
[1767815947156,4.29348661,3147.0,3146.2,1.00081527]
[1767815948958,7.47116266,3147.0,3146.2,1.00081527]
[1767815949282,4.29348661,3147.0,3146.2,1.00081527]
[1767815949585,4.29348661,3147.0,3146.3,1.00081527]
[1767815950163,0.42934866,3146.9,3146.3,1.00081527]
[1767815950715,0.43288678,3146.8,3145.2,1.00081527]
[1767815950874,0.43288678,3146.6,3145.4,1.00081527]
[1767815952695,0.43288678,3146.6,3145.7,0.001]
[1767815952883,3.60952752,3146.3,3145.7,0.001]
[1767815953802,3.60952752,3146.3,3145.7,1.00181527]
[1767815954465,6.78786397,3146.3,3145.7,1.00181527]
[1767815954664,3.60952752,3146.3,3145.7,1.00181527]
[1767815955290,0.43119107,3146.3,3145.7,1.00181527]
[1767815955486,0.44434711,3146.2,3145.7,1.00181527]
[1767815955790,0.834,3146.4,3145.8,1.00081527]
[1767815958074,3.17765348,3147.0,3145.8,1.00081527]
[1767815958075,0.4263328,3147.3,3145.9,1.00081527]
[1767815958394,9.53167692,3147.4,3145.9,1.00081527]
[1767815958395,0.4263328,3146.9,3145.9,1.00081527]
[1767815958567,0.4591121,3146.9,3145.9,1.00081527]
[1767815959797,6.7812182,3146.8,3145.9,1.00081527]
[1767815960004,0.68139975,3146.7,3145.9,1.00081527]
[1767815962996,3.17803343,3146.6,3145.9,1.00081527]
[1767815964405,3.17803343,3146.6,3146.2,0.002]
[1767815966589,3.17803343,3146.6,3146.2,0.00100101]
[1767815967192,4.28118483,3146.7,3146.2,0.00100101]
[1767815967398,0.4794812,3146.6,3146.2,0.00100101]
[1767815968020,3.65751535,3146.6,3146.2,0.00100101]
[1767815968188,0.834,3147.0,3146.2,1.00181628]
[1767815968388,4.43062837,3147.0,3146.2,1.00181628]
[1767815968710,0.41894785,3146.9,3146.2,1.00181628]
[1767815969735,3.59676149,3146.9,3146.2,1.00181628]
[1767815970211,0.4175705,3146.6,3145.9,1.00281527]
[1767815970710,0.4175705,3146.4,3145.9,0.002]
[1767815971904,3.59589575,3146.4,3145.9,0.002]
[1767815973215,4.0121828,3146.5,3145.9,1.01266723]
[1767815973381,4.0121828,3146.5,3145.9,0.85466723]
[1767815973709,0.40003675,3146.4,3145.9,0.85466723]
[1767815975913,3.57827417,3146.4,3145.9,0.85466723]
[1767815977206,3.57827417,3146.4,3146.2,0.002]
[1767815977914,3.57827417,3146.4,3145.9,0.002]
[1767815978089,0.56775152,3146.3,3145.7,1.01083371]
[1767815978290,1.32859572,3146.3,3145.7,1.01083371]
[1767815979220,4.50695243,3146.3,3145.7,1.01083371]
[1767815979515,3.93920091,3146.3,3145.7,1.01083371]
[1767815980117,0.7608442,3146.3,3145.7,1.01083371]
[1767815980980,4.57932242,3146.5,3145.7,1.01083371]
[1767815981589,4.01218089,3146.5,3145.7,1.01083371]
[1767815982099,4.01218089,3146.5,3145.8,1.01066723]
[1767815982597,0.834,3146.5,3145.8,1.01066723]
[1767815983112,4.0121353,3146.5,3145.8,1.01066723]
[1767815984017,0.56419506,3146.3,3145.7,0.00016648]
[1767815985120,3.74262171,3146.3,3145.7,0.00016648]
[1767815986130,6.92104836,3146.3,3145.7,0.00016648]
[1767815986424,0.59584261,3146.2,3145.2,1.01066723]
[1767815987223,0.56250716,3146.0,3145.2,1.01066723]
[1767815987432,0.37410457,3145.9,3145.2,1.01066723]
[1767815988133,0.93606197,3145.9,3145.2,1.01066723]
[1767815988914,0.37410457,3145.9,3145.3,1.01066723]
[1767815992542,3.55286356,3145.9,3145.3,1.01066723]
[1767815992851,0.5598208,3145.8,3145.1,1.01266723]
[1767815993006,0.5593019,3145.7,3145.1,0.002]
[1767815993532,0.5593019,3145.7,3145.1,0.00100101]
[1767815993919,0.5920812,3145.7,3145.1,0.00100101]
[1767815994121,0.55878896,3145.5,3145.1,0.00100101]
[1767815994445,0.55878896,3145.5,3145.1,2.02e-06]
[1767815994446,0.834,3145.5,3145.1,2.02e-06]
[1767815994743,4.01315074,3145.5,3145.1,2.02e-06]
[1767815996633,0.834,3145.5,3145.1,1.01066925]
[1767815997131,4.57045233,3145.5,3145.1,2.02e-06]
[1767815997446,0.45704523,3145.4,3145.1,2.02e-06]
[1767815999921,0.55583269,3145.3,3145.1,2.02e-06]
[1767816000147,3.63630597,3145.4,3145.1,2.02e-06]
[1767816000348,0.45704523,3145.4,3145.1,2.02e-06]
[1767816000744,3.21177056,3145.7,3145.1,1.00967026]
[1767816000941,0.0327793,3145.7,3145.1,1.00967026]
[1767816001142,0.41834215,3145.8,3145.5,1.01066723]
[1767816001451,0.38556285,3145.8,3145.5,1.01066723]
[1767816001951,0.834,3146.0,3145.5,1.01066723]
[1767816002152,0.002,3146.1,3145.6,0.96989814]
[1767816003669,0.002,3146.4,3146.1,0.96889915]
[1767816004166,0.002,3146.4,3146.2,0.96989814]
[1767816005160,0.002,3146.4,3145.5,3.17911834]
[1767816005161,0.834,3146.9,3146.4,0.96989814]
[1767816006155,0.00635671,3153.6,3146.5,0.96989814]
[1767816006156,0.5541926,3147.6,3146.5,0.96989814]
[1767816006325,3.76399566,3147.6,3146.5,0.96989814]
[1767816006685,0.836,3147.7,3146.5,0.96989814]
[1767816007725,0.58654057,3147.6,3146.5,0.96989814]
[1767816007954,0.5533349,3147.4,3146.5,0.96989814]
[1767816008121,0.5861142,3147.4,3146.5,0.96989814]
[1767816008453,1.24737126,3147.3,3146.5,0.96989814]
[1767816008655,1.3873349,3147.2,3146.5,0.96989814]
[1767816008861,0.002,3147.7,3146.6,0.96989814]
[1767816009063,0.836,3147.7,3146.6,0.96989814]
[1767816009264,4.01300604,3147.7,3146.6,0.96989814]
[1767816009425,0.55291342,3147.3,3145.9,3.17869027]
[1767816009628,0.55291342,3147.1,3145.9,0.96989814]
[1767816009829,0.8667793,3147.2,3145.6,0.96989814]
[1767816009830,0.55291342,3146.9,3145.6,0.96989814]
[1767816010162,6.90856364,3146.6,3145.6,0.96989814]
[1767816010346,1.18768149,3146.5,3145.6,0.96989814]
[1767816010547,0.35368149,3146.5,3145.7,0.96989814]
[1767816011365,0.834,3146.6,3145.7,0.96989814]
[1767816012375,3.17813443,3146.5,3145.7,0.96989814]
[1767816012743,3.21091373,3146.5,3145.7,0.96989814]
[1767816012972,3.17813443,3146.5,3145.7,0.96989814]
[1767816013551,3.17813443,3146.5,3146.0,0.97089814]
[1767816013755,0.40449137,3146.4,3146.0,0.97089814]
[1767816014851,3.58281469,3146.4,3146.0,0.97089814]
[1767816015356,3.58274867,3146.4,3146.0,0.97089814]
[1767816015757,6.76100597,3146.4,3146.0,0.97089814]
[1767816016354,3.58274867,3146.4,3146.0,0.97089814]
[1767816016554,0.66818018,3146.3,3146.0,0.97089814]
[1767816017091,3.17843748,3146.2,3146.0,0.97089814]
[1767816017586,3.84655874,3146.3,3146.0,0.97089814]
[1767816017795,3.84655874,3146.3,3146.0,0.001]
[1767816018890,0.66818018,3146.3,3146.0,0.001]
[1767816019057,3.17829162,3146.4,3146.0,0.001]
[1767816019696,3.17813443,3146.5,3146.0,0.97089814]
[1767816019914,6.35626886,3146.5,3146.0,0.97089814]
[1767816021620,6.90448668,3146.5,3146.0,0.001]
[1767816021770,0.54821782,3146.4,3146.0,0.001]
[1767816021970,0.74527045,3146.3,3146.0,0.001]
[1767816022466,1.29312556,3146.3,3145.6,0.96989814]
[1767816022669,0.54785511,3146.2,3145.6,0.96989814]
[1767816023569,1.29276702,3146.3,3145.6,0.96989814]
[1767816023770,3.72593405,3146.2,3145.6,0.96989814]
[1767816024016,0.3274011,3146.1,3145.6,0.96989814]
[1767816026102,0.3274011,3146.1,3145.4,0.002]
[1767816026103,6.3562788,3146.5,3145.7,0.96889915]
[1767816027205,0.54710212,3146.4,3145.7,0.96889915]
[1767816028506,3.17833645,3146.3,3145.7,0.96889915]
[1767816028709,3.17828461,3146.4,3145.7,0.96889915]
[1767816029502,3.17818514,3146.5,3145.7,0.96889915]
[1767816029704,0.71902406,3146.4,3145.7,0.96889915]
[1767816030182,0.71902406,3146.4,3145.8,0.96989814]
[1767816030377,3.89726615,3146.4,3145.8,0.96989814]
[1767816030596,0.70409849,3146.3,3145.4,3.18119525]
[1767816030774,0.70409849,3146.3,3145.5,0.96989814]
[1767816030983,0.35364749,3146.2,3145.5,0.96989814]
[1767816031491,0.35364749,3146.2,3145.6,0.96989814]
[1767816031887,0.35364749,3146.2,3145.4,3.18122983]
[1767816031888,0.70344847,3146.0,3145.4,0.00100101]
[1767816032213,0.70312905,3145.9,3145.4,0.00100101]
[1767816032518,0.0327793,3146.0,3145.0,0.97215811]
[1767816032519,0.70312905,3145.7,3145.0,0.97215811]
[1767816032689,1.54008123,3145.6,3145.0,0.97215811]
[1767816033097,2.24289453,3145.6,3145.0,0.97215811]
[1767816036017,0.70188764,3146.2,3145.1,0.97199366]
[1767816036196,0.834,3146.1,3145.1,0.97199366]
[1767816036518,7.19110904,3146.1,3145.1,0.97199366]
[1767816036721,7.89299668,3146.1,3145.1,0.97199366]
[1767816037820,7.89299668,3146.1,3145.3,0.97299366]
[1767816045234,7.19110904,3146.1,3145.3,0.97299366]
[1767816049708,0.69822727,3146.0,3145.3,0.97299366]
[1767816049908,0.001,3145.8,3145.3,0.97299366]
[1767816050734,0.73174712,3145.8,3144.9,0.97115912]
[1767816052751,0.69829237,3145.6,3144.9,0.97115912]
[1767816053040,3.21271717,3145.8,3144.9,0.97115912]
[1767816053041,0.834,3145.5,3145.0,0.97199366]
[1767816055909,0.834,3145.5,3145.1,0.97199366]
[1767816057152,0.834,3145.5,3145.2,0.97199366]
[1767816057455,0.834,3145.5,3145.2,0.97099467]
[1767816059261,0.001,3145.8,3145.2,0.97099467]
[1767816059418,3.17732659,3147.3,3145.5,0.81399366]
[1767816059615,0.85659637,3147.3,3145.5,0.81399366]
[1767816059913,0.85659637,3147.3,3145.3,0.834]
[1767816059914,0.002,3147.4,3146.1,0.97199366]
[1767816060123,3.17924528,3147.4,3146.2,0.97199366]
[1767816060357,3.58056981,3147.4,3146.4,0.97199366]
[1767816061224,6.75781509,3147.4,3146.4,0.97199366]
[1767816061442,3.58056981,3147.4,3146.5,0.81415307]
[1767816061755,0.001,3147.1,3146.5,0.81415307]
[1767816062724,0.002,3147.7,3147.1,0.95265071]
[1767816063064,0.836,3148.2,3146.7,0.9536497]
[1767816063229,0.836,3148.2,3146.9,0.9536497]
[1767816063429,0.836,3148.2,3147.1,0.9536497]
[1767816065641,0.836,3148.2,3147.3,0.9536497]
[1767816065845,4.01244092,3148.2,3147.3,0.9536497]
[1767816066361,0.836,3148.2,3147.3,0.9536497]
[1767816067863,0.836,3148.2,3147.5,0.9536497]
[1767816068374,0.002,3148.2,3147.9,0.95265071]
[1767816069979,0.002,3148.2,3146.9,0.834]
[1767816069980,0.002,3148.2,3146.8,0.1779254]
[1767816070265,0.002,3148.2,3147.4,3.17722522]
[1767816070477,0.002,3148.2,3147.7,0.98333038]
[1767816070633,0.002,3148.2,3147.9,0.98333038]
[1767816071160,0.002,3148.2,3148.0,0.98333038]
[1767816071373,0.002,3148.4,3148.0,0.98333038]
[1767816071547,0.002,3148.4,3148.1,0.98333038]
[1767816072145,0.002,3148.4,3148.2,0.98333038]
[1767816072861,0.002,3148.4,3148.0,0.98333038]
[1767816073984,0.002,3148.3,3148.0,0.98333038]
[1767816079406,0.002,3148.4,3148.3,0.98333038]
[1767816079603,0.002,3148.6,3148.0,3.1765842]
[1767816079604,0.002,3148.6,3148.1,0.98333038]
[1767816079758,0.002,3148.6,3148.2,0.98333038]
[1767816080067,0.002,3148.6,3147.7,0.03176922]
[1767816080068,0.002,3148.6,3147.8,0.98333038]
[1767816080269,0.002,3148.6,3147.9,0.98333038]
[1767816080755,0.002,3148.6,3148.0,0.98333038]
[1767816083277,0.92669836,3148.6,3148.0,0.98233139]
[1767816083456,1.65455843,3148.6,3148.0,0.98233139]
[1767816083895,0.002,3148.6,3148.1,0.98333038]
[1767816084297,0.002,3148.6,3148.3,0.98333038]
[1767816085275,0.002,3148.6,3147.9,0.98333038]
[1767816085595,0.002,3148.6,3148.0,0.98333038]
[1767816086003,0.92669836,3148.6,3147.6,0.001]
[1767816086153,0.92669836,3148.6,3147.8,0.98333038]
[1767816086896,0.92669836,3148.6,3147.9,0.98333038]
[1767816087597,0.002,3148.6,3148.0,0.98333038]
[1767816089490,0.002,3148.6,3148.1,0.98333038]
[1767816090104,0.002,3148.6,3147.8,0.98333038]
[1767816090105,0.92669836,3148.6,3147.8,0.98333038]
[1767816090595,0.92669836,3148.6,3147.9,0.98333038]
[1767816091511,0.92669836,3148.6,3147.9,4.160042]
[1767816091817,0.002,3148.6,3148.0,0.98333038]
[1767816092302,0.002,3148.9,3148.5,0.95448326]
[1767816093717,0.002,3148.9,3148.7,0.95448326]
[1767816093909,0.002,3149.0,3148.9,0.95448326]
[1767816094908,0.002,3149.4,3149.2,0.95448326]
[1767816095109,0.002,3149.4,3148.5,10.36130578]
[1767816095110,0.002,3149.6,3149.4,0.95248528]
[1767816100627,0.002,3149.6,3149.1,0.95448326]
[1767816101643,0.00118006,3149.1,3148.7,0.95448326]
[1767816101800,0.93391387,3149.4,3148.4,3.17612357]
[1767816102350,3.17510715,3149.5,3148.5,0.98624441]
[1767816103814,1.11608319,3149.6,3148.7,0.95448326]
[1767816104003,1.11608319,3149.6,3148.6,3.17601473]
[1767816104004,3.17701692,3149.6,3148.8,0.95448326]
[1767816105181,0.002,3149.6,3148.9,0.95448326]
[1767816105378,0.93591387,3149.6,3148.7,4.1303309]
[1767816105678,0.93591387,3149.6,3148.8,0.95448326]
[1767816106369,0.002,3149.6,3148.8,0.95448326]
[1767816106668,0.002,3149.6,3148.9,0.95448326]
[1767816109373,0.002,3149.6,3149.0,0.95448326]
[1767816109584,0.002,3149.6,3149.0,0.95348427]
[1767816109791,0.002,3149.6,3149.1,0.98623836]
[1767816109992,0.002,3149.6,3149.1,0.95448326]
[1767816110291,0.002,3149.6,3149.2,0.001]
[1767816111682,0.002,3149.6,3149.2,0.95548326]
[1767816111981,0.002,3149.6,3149.2,0.001]
[1767816112783,0.002,3149.6,3149.3,0.95348427]
[1767816115089,0.002,3150.2,3149.6,0.95348427]
[1767816117393,0.002,3150.2,3149.7,0.95448326]
[1767816118696,0.002,3150.2,3149.8,0.95448326]
[1767816118863,0.002,3150.2,3149.9,0.95448326]
[1767816119061,0.002,3150.2,3149.6,0.95448326]
[1767816119700,0.002,3150.2,3149.3,1.78748326]
[1767816119701,0.93591387,3150.2,3149.3,1.78748326]
[1767816119898,0.93591387,3150.2,3149.4,4.1296322]
[1767816120140,0.93591387,3150.2,3149.5,0.49626322]
[1767816120314,0.93591387,3150.2,3149.6,0.95448326]
[1767816120473,0.93391387,3150.1,3149.3,0.95448326]
[1767816120804,4.10845132,3150.1,3149.3,0.95448326]
[1767816121303,4.10845132,3150.1,3149.4,0.95448326]
[1767816121304,0.93391387,3150.1,3149.4,0.95448326]
[1767816121504,0.002,3150.2,3149.4,0.95448326]
[1767816121823,0.002,3149.9,3149.5,0.9602521]
[1767816123514,0.002,3149.9,3149.6,0.96084908]
[1767816127084,0.002,3149.9,3149.6,4.13585356]
[1767816127517,0.002,3149.9,3149.7,0.96084908]
[1767816128113,4.0853215,3150.6,3149.9,0.96084908]
[1767816128415,0.91129129,3150.5,3149.9,0.96084908]
[1767816129016,3.17403021,3150.6,3149.9,0.96084908]
[1767816130100,4.08524144,3150.7,3149.9,0.96084908]
[1767816130309,4.08524144,3150.7,3150.0,0.96084908]
[1767816130607,4.08521394,3150.7,3150.0,0.96084908]
[1767816131002,3.17392265,3150.7,3150.1,0.96084908]
[1767816131215,4.08521394,3150.7,3150.1,0.96084908]
[1767816131726,0.91129129,3150.6,3149.8,0.96084908]
[1767816132222,0.91129129,3150.4,3149.5,4.13587958]
[1767816132438,0.91129129,3150.4,3149.6,0.96084908]
[1767816133222,0.91129129,3150.4,3149.6,4.13584947]
[1767816133624,0.91129129,3150.4,3149.7,4.13575179]
[1767816133790,0.91329129,3150.4,3149.7,3.93773831]
[1767816134626,0.91329129,3150.4,3149.8,0.96084908]
[1767816134804,0.002,3150.4,3149.8,0.99259712]
[1767816135319,0.002,3150.4,3149.8,0.96084908]
[1767816135829,0.91329129,3150.4,3149.7,3.93773831]
[1767816136130,0.91329129,3150.4,3149.8,0.48985874]
[1767816136296,0.91329129,3150.4,3149.8,3.66465592]
[1767816136726,0.91329129,3150.4,3149.8,0.48985874]
[1767816137597,0.91329129,3150.4,3149.8,3.66464501]
[1767816139598,0.91329129,3150.4,3149.8,0.48985874]
[1767816139793,0.91329129,3150.4,3149.9,0.36647227]
[1767816142127,0.91329129,3150.4,3149.9,3.54116874]
[1767816142599,0.91329129,3150.4,3149.9,0.36647227]
[1767816142800,0.91129129,3150.3,3149.9,0.36647227]
[1767816143123,0.91129129,3150.3,3149.7,3.17489399]
[1767816143898,0.91129129,3150.3,3149.8,3.1747917]
[1767816144323,0.91129129,3150.3,3149.6,6.35001026]
[1767816144727,0.002,3150.4,3149.7,0.96084908]
[1767816144939,0.002,3150.7,3150.0,0.96084908]
[1767816145104,0.002,3150.7,3150.1,0.9925941]
[1767816146238,0.002,3150.7,3150.3,0.96084908]
[1767816146410,0.002,3150.7,3150.4,0.41352507]
[1767816147334,0.002,3150.7,3150.3,0.99259208]
[1767816147703,0.91329129,3150.7,3150.3,0.031743]
[1767816148335,0.002,3150.7,3150.3,0.031743]
[1767816151317,0.002,3150.7,3150.3,0.96084908]
[1767816152435,0.002,3150.7,3150.4,0.031742]
[1767816152635,0.002,3150.7,3150.4,0.44853888]
[1767816153526,0.002,3150.7,3150.4,0.41679688]
[1767816153726,0.002,3150.7,3150.2,0.001]
[1767816153945,0.91403926,3150.7,3150.2,0.001]
[1767816159064,0.002,3150.7,3150.2,0.94950888]
[1767816159270,0.91403926,3150.7,3150.2,0.001]
[1767816159562,0.91203926,3150.5,3150.2,0.001]
[1767816160563,0.91203926,3150.4,3150.2,0.001]
[1767816163662,0.91203926,3150.3,3149.4,3.17516467]
[1767816164138,0.91203926,3150.2,3149.4,4.12371685]
[1767816164468,0.41203926,3150.2,3149.4,4.12371685]
[1767816164834,0.41203926,3150.2,3149.4,7.29892482]
[1767816165188,0.41203926,3150.2,3149.5,0.72989248]
[1767816165466,0.41203926,3150.2,3149.2,0.94950888]
[1767816165633,0.41203926,3150.2,3149.2,4.12485943]
[1767816165830,0.41203926,3150.2,3149.3,3.17529848]
[1767816166230,0.77480655,3150.0,3149.3,3.17529848]
[1767816166945,3.948944,3150.4,3149.4,0.94850888]
[1767816167154,3.948944,3150.4,3149.6,0.94850888]
[1767816168859,7.1231441,3150.4,3149.6,0.94850888]
[1767816169648,7.1231441,3150.4,3149.8,0.001]
[1767816169854,0.77462074,3150.3,3149.8,0.001]
[1767816170172,3.94896184,3150.2,3149.8,0.001]
[1767816171029,0.77456022,3150.1,3149.3,3.17524215]
[1767816171235,0.77456022,3150.1,3149.4,3.17520092]
[1767816171427,0.77456022,3150.1,3149.4,4.1237098]
[1767816171664,3.17440162,3150.2,3149.5,0.94850888]
[1767816171862,3.17440162,3150.2,3149.5,1.36087986]
[1767816172062,3.94884288,3150.2,3149.5,1.36087986]
[1767816172864,7.1232445,3150.2,3149.5,0.94850888]
[1767816173060,3.94884288,3150.2,3149.5,0.94850888]
[1767816173948,0.77438281,3150.1,3149.3,0.94850888]
[1767816174152,0.77432502,3149.9,3149.2,0.001]
[1767816175075,0.7742679,3149.7,3149.2,0.001]
[1767816177481,3.94922047,3149.7,3149.2,0.001]
[1767816178959,0.77404589,3149.6,3149.2,0.001]
[1767816179886,3.17510715,3149.5,3149.2,0.001]
[1767816180075,3.94909913,3149.5,3149.2,0.001]
[1767816180390,0.77399198,3149.4,3149.2,0.001]
[1767816180579,0.77399198,3149.4,3148.6,3.17596495]
[1767816180780,0.77399198,3149.4,3148.6,0.63521077]
[1767816181094,0.77399198,3149.4,3148.4,3.17620455]
[1767816181455,0.77399198,3149.4,3148.4,3.17621103]
[1767816181686,0.77399198,3149.4,3148.4,3.17614865]
[1767816181861,0.77399198,3149.4,3148.4,7.28196429]
[1767816182074,0.77399198,3149.4,3148.5,0.92959915]
[1767816182266,0.77399198,3149.4,3148.5,1.65789558]
[1767816182687,0.77278244,3149.3,3148.5,1.65789558]
[1767816182868,3.17523834,3149.4,3148.6,0.92959915]
[1767816183791,0.77273154,3149.3,3148.4,4.1057478]
[1767816184182,3.17540962,3149.2,3148.4,0.92959915]
[1767816184785,3.17540962,3149.2,3148.4,4.10576071]
[1767816185105,3.17540962,3149.2,3148.5,0.92959915]
[1767816185261,3.94809219,3149.3,3148.5,0.92959915]
[1767816186666,3.94809219,3149.3,3148.5,4.1056715]
[1767816187369,0.77253376,3149.2,3148.5,3.17607235]
[1767816188393,0.77248573,3149.2,3148.5,3.17607235]
[1767816188596,0.77248573,3149.2,3148.5,3.88423917]
[1767816189596,0.77243825,3149.1,3148.5,0.70816682]
[1767816189781,0.77243825,3149.1,3148.3,0.001]
[1767816190096,0.77239131,3148.9,3148.3,0.001]
[1767816190265,0.77239131,3148.7,3148.3,0.001]
[1767816190465,0.16053913,3148.8,3148.3,0.001]
[1767816190775,0.93293044,3148.8,3148.3,0.001]
[1767816190974,1.60539131,3149.0,3148.3,0.001]
[1767816191578,3.17571215,3148.9,3148.3,0.93059915]
[1767816192102,3.9480112,3148.9,3148.3,0.001]
[1767816192602,7.12372335,3148.9,3148.3,0.001]
[1767816192770,3.9480112,3148.9,3148.3,0.001]
[1767816193195,0.77225371,3148.8,3148.3,0.001]
[1767816193392,0.77225371,3148.7,3147.7,0.92959915]
[1767816193602,5.33682747,3148.8,3145.3,0.92959915]
[1767816193603,0.77225371,3146.9,3145.3,0.92959915]
[1767816193784,5.33682747,3146.7,3145.5,0.92959915]